[Event "*** SCC Grand Prix: Titled Tuesday Blitz"]
[Site "Chess.com"]
[Date "2020.07.07"]
[Round "6"]
[White "Vesper2018"]
[Black "carlesdc96"]
[Result "0-1"]
[WhiteElo "2557"]
[BlackElo "2711"]
[TimeControl "180+1"]
[EndTime "11:07:15 PDT"]
[Termination "carlesdc96 won by resignation"]

1. e4 {[%clk 0:03:00.3]} 1... e6 {[%clk 0:02:58.4]} 2. d4 {[%clk 0:02:56]} 2...
d5 {[%clk 0:02:58.5]} 3. e5 {[%clk 0:02:56.4]} 3... c5 {[%clk 0:02:57.7]} 4. c3
{[%clk 0:02:56.8]} 4... Nc6 {[%clk 0:02:58.6]} 5. Nf3 {[%clk 0:02:56.7]} 5...
Bd7 {[%clk 0:02:58.6]} 6. a3 {[%clk 0:02:54.4]} 6... Nge7 {[%clk 0:02:58.1]} 7.
Be2 {[%clk 0:02:37]} 7... Nf5 {[%clk 0:02:55.5]} 8. dxc5 {[%clk 0:02:22.2]} 8...
Bxc5 {[%clk 0:02:54.9]} 9. O-O {[%clk 0:02:22.2]} 9... Nh4 {[%clk 0:02:48.9]}
10. Re1 {[%clk 0:02:08.8]} 10... a5 {[%clk 0:02:43.6]} 11. Bd3 {[%clk
0:01:55.7]} 11... Nxf3+ {[%clk 0:02:25.9]} 12. Qxf3 {[%clk 0:01:55.4]} 12... Qb6
{[%clk 0:02:25.2]} 13. Nd2 {[%clk 0:01:42.9]} 13... a4 {[%clk 0:02:17.6]} 14.
Nf1 {[%clk 0:01:37.2]} 14... Na5 {[%clk 0:02:16.8]} 15. Rb1 {[%clk 0:01:32.6]}
15... Bb5 {[%clk 0:02:12]} 16. Bc2 {[%clk 0:01:22.9]} 16... Nc4 {[%clk
0:02:09.7]} 17. Ng3 {[%clk 0:01:18.1]} 17... g6 {[%clk 0:01:54.4]} 18. Bg5
{[%clk 0:01:16.4]} 18... h6 {[%clk 0:01:47.4]} 19. Bf6 {[%clk 0:01:05.2]} 19...
Rg8 {[%clk 0:01:46.6]} 20. Re2 {[%clk 0:00:59.4]} 20... Bc6 {[%clk 0:01:15.1]}
21. Qf4 {[%clk 0:00:52.4]} 21... Bf8 {[%clk 0:01:06.2]} 22. Bd3 {[%clk 0:00:46]}
22... Bb5 {[%clk 0:00:57.5]} 23. Rd1 {[%clk 0:00:42]} 23... Qc6 {[%clk
0:00:56.6]} 24. Nf1 {[%clk 0:00:38.8]} 24... Nb6 {[%clk 0:00:51.5]} 25. Bxb5
{[%clk 0:00:36.7]} 25... Qxb5 {[%clk 0:00:51.3]} 26. Rc2 {[%clk 0:00:28.2]}
26... Rc8 {[%clk 0:00:50.4]} 27. Ne3 {[%clk 0:00:27.4]} 27... Nc4 {[%clk
0:00:49]} 28. Ng4 {[%clk 0:00:22.7]} 28... Qb3 {[%clk 0:00:37.7]} 29. Rdc1
{[%clk 0:00:20.6]} 29... h5 {[%clk 0:00:36]} 30. Nh6 {[%clk 0:00:20.3]} 30...
Bxh6 {[%clk 0:00:35.4]} 31. Qxh6 {[%clk 0:00:20.5]} 31... Kd7 {[%clk 0:00:25.1]}
32. Qh7 {[%clk 0:00:19.2]} 32... Rcf8 {[%clk 0:00:23.8]} 33. Bg7 {[%clk
0:00:18.8]} 33... Re8 {[%clk 0:00:22.8]} 34. Bh6 {[%clk 0:00:19.1]} 34... Nxe5
{[%clk 0:00:18.9]} 35. Re2 {[%clk 0:00:15.1]} 35... Rh8 {[%clk 0:00:15.5]} 36.
Qg7 {[%clk 0:00:14.5]} 36... Reg8 {[%clk 0:00:15.6]} 37. Qxe5 {[%clk 0:00:14.5]}
37... Rxh6 {[%clk 0:00:15.4]} 38. Qf6 {[%clk 0:00:14.7]} 38... Rh7 {[%clk
0:00:15.1]} 39. c4 {[%clk 0:00:14.1]} 39... Qd3 {[%clk 0:00:12.6]} 40. Re3
{[%clk 0:00:13.8]} 40... Qd2 {[%clk 0:00:10.7]} 41. Rce1 {[%clk 0:00:13.5]}
41... d4 {[%clk 0:00:09.8]} 42. Rxe6 {[%clk 0:00:13.3]} 42... fxe6 {[%clk
0:00:09.1]} 43. Qxe6+ {[%clk 0:00:13.6]} 43... Kc7 {[%clk 0:00:09.5]} 44. h4
{[%clk 0:00:12.9]} 44... Rd8 {[%clk 0:00:08]} 45. Re5 {[%clk 0:00:12.4]} 45...
Kb8 {[%clk 0:00:07.2]} 46. Rb5 {[%clk 0:00:10.7]} 46... Qc1+ {[%clk 0:00:06.8]}
47. Kh2 {[%clk 0:00:10.9]} 47... Qf4+ {[%clk 0:00:07.6]} 48. Kg1 {[%clk
0:00:11.3]} 48... Rc7 {[%clk 0:00:05.8]} 49. c5 {[%clk 0:00:10]} 49... d3 {[%clk
0:00:06.1]} 50. c6 {[%clk 0:00:10.3]} 50... Qc1+ {[%clk 0:00:05.9]} 51. Kh2
{[%clk 0:00:10.4]} 51... Qxc6 {[%clk 0:00:06.8]} 52. Qe5 {[%clk 0:00:04.4]}
52... Qd6 {[%clk 0:00:07]} 0-1

[Event "*** SCC Grand Prix: Titled Tuesday Blitz"]
[Site "Chess.com"]
[Date "2020.07.07"]
[Round "6"]
[White "Jospem"]
[Black "ThePatrick27"]
[Result "1-0"]
[WhiteElo "2884"]
[BlackElo "2520"]
[TimeControl "180+1"]
[EndTime "11:07:16 PDT"]
[Termination "Jospem won by resignation"]

1. e4 {[%clk 0:03:00.9]} 1... e5 {[%clk 0:02:59.6]} 2. Nf3 {[%clk 0:03:00.9]}
2... Nc6 {[%clk 0:02:59]} 3. Bb5 {[%clk 0:03:01.5]} 3... a6 {[%clk 0:02:58.7]}
4. Ba4 {[%clk 0:03:01.5]} 4... Nf6 {[%clk 0:02:57.7]} 5. d3 {[%clk 0:03:01.2]}
5... b5 {[%clk 0:02:54.7]} 6. Bb3 {[%clk 0:03:01.4]} 6... Be7 {[%clk 0:02:53.8]}
7. a4 {[%clk 0:03:01.5]} 7... b4 {[%clk 0:02:43.3]} 8. O-O {[%clk 0:03:00.8]}
8... O-O {[%clk 0:02:43.7]} 9. Nbd2 {[%clk 0:02:57.9]} 9... Bc5 {[%clk
0:02:37.1]} 10. a5 {[%clk 0:02:55.8]} 10... d6 {[%clk 0:02:36.1]} 11. c3 {[%clk
0:02:55.6]} 11... bxc3 {[%clk 0:02:35.8]} 12. bxc3 {[%clk 0:02:55.4]} 12... Be6
{[%clk 0:02:32.3]} 13. h3 {[%clk 0:02:46.7]} 13... h6 {[%clk 0:02:18.4]} 14. Ba4
{[%clk 0:02:45.6]} 14... Bd7 {[%clk 0:02:09.8]} 15. d4 {[%clk 0:02:37.1]} 15...
exd4 {[%clk 0:02:00.7]} 16. Bxc6 {[%clk 0:02:36.8]} 16... Bxc6 {[%clk 0:02:00]}
17. cxd4 {[%clk 0:02:34.1]} 17... Ba7 {[%clk 0:01:59]} 18. d5 {[%clk 0:02:33.2]}
18... Bb5 {[%clk 0:01:48.1]} 19. Re1 {[%clk 0:02:28.1]} 19... c6 {[%clk
0:01:37.8]} 20. dxc6 {[%clk 0:02:11]} 20... Bxc6 {[%clk 0:01:37.9]} 21. Ba3
{[%clk 0:02:10.8]} 21... Re8 {[%clk 0:01:37.1]} 22. Qc2 {[%clk 0:01:51.5]} 22...
Rc8 {[%clk 0:01:35.9]} 23. Qd3 {[%clk 0:01:52.2]} 23... Qxa5 {[%clk 0:00:58.9]}
24. Bxd6 {[%clk 0:01:11.3]} 24... Qb5 {[%clk 0:00:57.6]} 25. Qxb5 {[%clk
0:00:44.7]} 25... Bxb5 {[%clk 0:00:58.5]} 26. Be5 {[%clk 0:00:40.6]} 26... Nd7
{[%clk 0:00:49.8]} 27. Bd4 {[%clk 0:00:40.7]} 27... Bxd4 {[%clk 0:00:36.3]} 28.
Nxd4 {[%clk 0:00:40.6]} 28... Ne5 {[%clk 0:00:35.6]} 29. N2f3 {[%clk 0:00:21.6]}
29... Nxf3+ {[%clk 0:00:31.3]} 30. Nxf3 {[%clk 0:00:22.5]} 30... Rc4 {[%clk
0:00:23.8]} 31. Nd2 {[%clk 0:00:19.1]} 31... Rc2 {[%clk 0:00:23.6]} 32. Nb3
{[%clk 0:00:19.3]} 32... Rc4 {[%clk 0:00:20.6]} 33. f3 {[%clk 0:00:17.8]} 33...
Rb4 {[%clk 0:00:19]} 34. Nc5 {[%clk 0:00:17.3]} 34... Ra8 {[%clk 0:00:18.6]} 35.
Ra3 {[%clk 0:00:13.5]} 35... Kf8 {[%clk 0:00:18]} 36. Rea1 {[%clk 0:00:13.2]}
36... Rc4 {[%clk 0:00:16.5]} 37. Nxa6 {[%clk 0:00:09.6]} 37... Rc2 {[%clk
0:00:15.8]} 38. Nb4 {[%clk 0:00:07.5]} 38... Rxa3 {[%clk 0:00:15.9]} 39. Nxc2
{[%clk 0:00:07.6]} 39... Rc3 {[%clk 0:00:14.5]} 40. Nd4 {[%clk 0:00:07.6]} 40...
Bd7 {[%clk 0:00:14.2]} 41. Ra8+ {[%clk 0:00:07.2]} 41... Ke7 {[%clk 0:00:14.4]}
42. Ra7 {[%clk 0:00:07.9]} 42... Kd6 {[%clk 0:00:13.5]} 43. Ra6+ {[%clk
0:00:07.6]} 43... Ke7 {[%clk 0:00:13.3]} 44. Kf2 {[%clk 0:00:06.2]} 44... g6
{[%clk 0:00:13.5]} 45. h4 {[%clk 0:00:06.1]} 45... Rd3 {[%clk 0:00:11.2]} 46.
Ne2 {[%clk 0:00:05.5]} 46... Rd2 {[%clk 0:00:11.1]} 47. Rb6 {[%clk 0:00:06.1]}
47... Rc2 {[%clk 0:00:10.9]} 48. Ke3 {[%clk 0:00:05.8]} 48... Kd8 {[%clk
0:00:10.6]} 49. Rb4 {[%clk 0:00:05.2]} 49... Kc7 {[%clk 0:00:10.3]} 50. g4
{[%clk 0:00:05.9]} 50... g5 {[%clk 0:00:09.4]} 51. h5 {[%clk 0:00:05.5]} 51...
Be6 {[%clk 0:00:09.5]} 52. Nd4 {[%clk 0:00:05.3]} 52... Rc3+ {[%clk 0:00:08.5]}
53. Kd2 {[%clk 0:00:05.9]} 53... Ra3 {[%clk 0:00:07.9]} 54. Nb5+ {[%clk
0:00:05.6]} 54... Kb6 {[%clk 0:00:06.9]} 55. Nxa3+ {[%clk 0:00:06.5]} 55... Kc5
{[%clk 0:00:07.8]} 56. Rb5+ {[%clk 0:00:06.6]} 1-0

[Event "*** SCC Grand Prix: Titled Tuesday Blitz"]
[Site "Chess.com"]
[Date "2020.07.07"]
[Round "6"]
[White "deep306"]
[Black "FairChess_on_YouTube"]
[Result "0-1"]
[WhiteElo "2653"]
[BlackElo "2989"]
[TimeControl "180+1"]
[EndTime "11:07:17 PDT"]
[Termination "FairChess_on_YouTube won on time"]

1. e4 {[%clk 0:02:59.6]} 1... c5 {[%clk 0:02:59.3]} 2. Nf3 {[%clk 0:02:58.6]}
2... a6 {[%clk 0:02:59.5]} 3. c3 {[%clk 0:02:57.8]} 3... e6 {[%clk 0:02:58]} 4.
d4 {[%clk 0:02:57.7]} 4... d5 {[%clk 0:02:58.6]} 5. e5 {[%clk 0:02:57.3]} 5...
Bd7 {[%clk 0:02:58]} 6. Na3 {[%clk 0:02:52.7]} 6... Nh6 {[%clk 0:02:50]} 7. Bd3
{[%clk 0:02:47.2]} 7... cxd4 {[%clk 0:02:49.6]} 8. cxd4 {[%clk 0:02:46.7]} 8...
Bxa3 {[%clk 0:02:44.3]} 9. bxa3 {[%clk 0:02:45.7]} 9... Bb5 {[%clk 0:02:44]} 10.
Bxb5+ {[%clk 0:02:43.2]} 10... axb5 {[%clk 0:02:43.8]} 11. O-O {[%clk 0:02:43]}
11... Nc6 {[%clk 0:02:43.8]} 12. Rb1 {[%clk 0:02:41.8]} 12... b4 {[%clk
0:02:41.5]} 13. axb4 {[%clk 0:02:39.1]} 13... Rxa2 {[%clk 0:02:41.4]} 14. Qb3
{[%clk 0:02:29.2]} 14... Ra8 {[%clk 0:02:30.6]} 15. Bxh6 {[%clk 0:02:28.6]}
15... gxh6 {[%clk 0:02:30.7]} 16. b5 {[%clk 0:02:26.8]} 16... Ne7 {[%clk
0:02:30]} 17. Qe3 {[%clk 0:02:10.1]} 17... Nf5 {[%clk 0:02:29.8]} 18. Qf4 {[%clk
0:02:10.1]} 18... Rg8 {[%clk 0:02:29.7]} 19. g3 {[%clk 0:02:04.6]} 19... h5
{[%clk 0:02:28.4]} 20. h3 {[%clk 0:02:02.7]} 20... h6 {[%clk 0:01:38]} 21. Kh2
{[%clk 0:02:00.5]} 21... Ra2 {[%clk 0:01:34.4]} 22. Ra1 {[%clk 0:01:46.4]} 22...
Re2 {[%clk 0:00:58.7]} 23. Kh1 {[%clk 0:01:30.1]} 23... Kd7 {[%clk 0:00:40.9]}
24. b6 {[%clk 0:01:18.7]} 24... Qxb6 {[%clk 0:00:37.1]} 25. Rfb1 {[%clk
0:01:16.5]} 25... Qc6 {[%clk 0:00:16.9]} 26. Ra7 {[%clk 0:00:59.3]} 26... Rb8
{[%clk 0:00:15.8]} 27. Nh4 {[%clk 0:00:32.7]} 27... Qc2 {[%clk 0:00:11.6]} 28.
Rf1 {[%clk 0:00:11.5]} 28... Re4 {[%clk 0:00:09.8]} 29. Qf3 {[%clk 0:00:11.1]}
29... Rxd4 {[%clk 0:00:08.9]} 30. Nxf5 {[%clk 0:00:11]} 30... Qxf5 {[%clk
0:00:08.7]} 31. Qb3 {[%clk 0:00:09.5]} 31... Qxe5 {[%clk 0:00:06.8]} 32. Rxb7+
{[%clk 0:00:08.2]} 32... Rxb7 {[%clk 0:00:07.7]} 33. Qxb7+ {[%clk 0:00:08.3]}
33... Qc7 {[%clk 0:00:06.7]} 34. Qb5+ {[%clk 0:00:08.3]} 34... Ke7 {[%clk
0:00:05.8]} 35. Ra1 {[%clk 0:00:06]} 35... Rc4 {[%clk 0:00:05.6]} 36. Ra8 {[%clk
0:00:05.7]} 36... Kf6 {[%clk 0:00:03.5]} 37. Qe8 {[%clk 0:00:05.3]} 37... d4
{[%clk 0:00:03.7]} 38. Qh8+ {[%clk 0:00:05.1]} 38... Kf5 {[%clk 0:00:03.7]} 39.
Qxh6 {[%clk 0:00:04.2]} 39... Qc6+ {[%clk 0:00:03.7]} 40. Kh2 {[%clk 0:00:04.2]}
40... Qxa8 {[%clk 0:00:04.2]} 41. Qxh5+ {[%clk 0:00:04.2]} 41... Ke4 {[%clk
0:00:03.4]} 42. Qg4+ {[%clk 0:00:02]} 42... Kd3 {[%clk 0:00:03]} 43. Qd1+ {[%clk
0:00:02]} 43... Kc3 {[%clk 0:00:03.5]} 44. Qe1+ {[%clk 0:00:01.5]} 44... Kb3
{[%clk 0:00:03.4]} 45. Qb1+ {[%clk 0:00:01.8]} 45... Kc3 {[%clk 0:00:03.8]} 0-1

[Event "*** SCC Grand Prix: Titled Tuesday Blitz"]
[Site "Chess.com"]
[Date "2020.07.07"]
[Round "6"]
[White "Kobalia"]
[Black "KuzubovYuriy"]
[Result "1-0"]
[WhiteElo "2709"]
[BlackElo "2839"]
[TimeControl "180+1"]
[EndTime "11:07:18 PDT"]
[Termination "Kobalia won by resignation"]

1. e4 {[%clk 0:03:00.9]} 1... c6 {[%clk 0:02:57.6]} 2. d4 {[%clk 0:03:00.1]}
2... d5 {[%clk 0:02:57.2]} 3. exd5 {[%clk 0:03:00.6]} 3... cxd5 {[%clk 0:02:57]}
4. Bd3 {[%clk 0:03:01.5]} 4... Nf6 {[%clk 0:02:53.7]} 5. c3 {[%clk 0:03:01.5]}
5... Bg4 {[%clk 0:02:50.4]} 6. Qb3 {[%clk 0:03:00.8]} 6... Qb6 {[%clk
0:02:46.6]} 7. Qxb6 {[%clk 0:02:53.4]} 7... axb6 {[%clk 0:02:46.4]} 8. Na3
{[%clk 0:02:53.6]} 8... Na6 {[%clk 0:02:39.7]} 9. Nb5 {[%clk 0:02:52.7]} 9... e6
{[%clk 0:02:22.2]} 10. Bf4 {[%clk 0:02:51.1]} 10... Be7 {[%clk 0:02:19]} 11. Ne2
{[%clk 0:02:48]} 11... Bxe2 {[%clk 0:02:05.1]} 12. Kxe2 {[%clk 0:02:42.9]} 12...
O-O {[%clk 0:02:02.7]} 13. Rhe1 {[%clk 0:02:42]} 13... Rfc8 {[%clk 0:01:59.5]}
14. Kf1 {[%clk 0:02:41.1]} 14... Ne8 {[%clk 0:01:55.9]} 15. Bg3 {[%clk
0:02:33.2]} 15... Nac7 {[%clk 0:01:51.9]} 16. Nxc7 {[%clk 0:02:20]} 16... Nxc7
{[%clk 0:01:51.4]} 17. a3 {[%clk 0:02:02.2]} 17... Ne8 {[%clk 0:01:49.4]} 18. f4
{[%clk 0:01:35.8]} 18... Bd6 {[%clk 0:01:44]} 19. f5 {[%clk 0:01:35.4]} 19...
Bxg3 {[%clk 0:01:42.8]} 20. hxg3 {[%clk 0:01:35.1]} 20... exf5 {[%clk
0:01:35.8]} 21. Bxf5 {[%clk 0:01:32.9]} 21... Rc7 {[%clk 0:01:34.4]} 22. Re5
{[%clk 0:01:31.2]} 22... Rd8 {[%clk 0:01:29]} 23. Rae1 {[%clk 0:01:12.5]} 23...
Kf8 {[%clk 0:01:27.8]} 24. g4 {[%clk 0:01:08.6]} 24... g6 {[%clk 0:00:53.2]} 25.
Bc2 {[%clk 0:01:03]} 25... h6 {[%clk 0:00:51.7]} 26. g5 {[%clk 0:01:00.2]} 26...
hxg5 {[%clk 0:00:50.4]} 27. Rxg5 {[%clk 0:01:00.1]} 27... Re7 {[%clk 0:00:49.3]}
28. Bb3 {[%clk 0:00:51.7]} 28... Rxe1+ {[%clk 0:00:44.6]} 29. Kxe1 {[%clk
0:00:51.1]} 29... Nc7 {[%clk 0:00:39]} 30. Kd2 {[%clk 0:00:43.1]} 30... Rd6
{[%clk 0:00:36.7]} 31. Ke3 {[%clk 0:00:37.2]} 31... Kg7 {[%clk 0:00:28.9]} 32.
Re5 {[%clk 0:00:35.5]} 32... Re6 {[%clk 0:00:27]} 33. Kf4 {[%clk 0:00:32.3]}
33... f6 {[%clk 0:00:24.7]} 34. Rxe6 {[%clk 0:00:25.7]} 34... Nxe6+ {[%clk
0:00:25.6]} 35. Ke3 {[%clk 0:00:25.8]} 35... Nc7 {[%clk 0:00:25.3]} 36. c4
{[%clk 0:00:24.9]} 36... dxc4 {[%clk 0:00:23.3]} 37. Bxc4 {[%clk 0:00:25]} 37...
Ne8 {[%clk 0:00:17.9]} 38. Ke4 {[%clk 0:00:22.5]} 38... Nd6+ {[%clk 0:00:17.7]}
39. Kd5 {[%clk 0:00:22.7]} 39... Nxc4 {[%clk 0:00:17]} 40. Kxc4 {[%clk
0:00:22.6]} 40... Kf7 {[%clk 0:00:14.5]} 41. Kd5 {[%clk 0:00:22.6]} 41... Ke7
{[%clk 0:00:14.2]} 42. a4 {[%clk 0:00:18.6]} 42... Kd7 {[%clk 0:00:14.3]} 43. b4
{[%clk 0:00:17.8]} 43... Ke7 {[%clk 0:00:13.3]} 44. a5 {[%clk 0:00:17.6]} 44...
bxa5 {[%clk 0:00:12.8]} 45. bxa5 {[%clk 0:00:17.8]} 45... Kd7 {[%clk 0:00:13]}
46. Kc5 {[%clk 0:00:18.1]} 46... f5 {[%clk 0:00:10.1]} 47. Kd5 {[%clk
0:00:08.4]} 47... g5 {[%clk 0:00:03.4]} 48. Ke5 {[%clk 0:00:08.5]} 48... f4
{[%clk 0:00:02.8]} 49. Kf5 {[%clk 0:00:08.8]} 49... Kc6 {[%clk 0:00:02.6]} 50.
Kxg5 {[%clk 0:00:09]} 50... Kb5 {[%clk 0:00:03]} 51. d5 {[%clk 0:00:09]} 51...
Kxa5 {[%clk 0:00:03.7]} 52. d6 {[%clk 0:00:08.7]} 52... Kb6 {[%clk 0:00:04]} 53.
Kf6 {[%clk 0:00:08.9]} 53... Kc6 {[%clk 0:00:04]} 54. Ke7 {[%clk 0:00:09]} 1-0

[Event "*** SCC Grand Prix: Titled Tuesday Blitz"]
[Site "Chess.com"]
[Date "2020.07.07"]
[Round "6"]
[White "Falia-p"]
[Black "FMalexhdez"]
[Result "1-0"]
[WhiteElo "2308"]
[BlackElo "2128"]
[TimeControl "180+1"]
[EndTime "11:07:19 PDT"]
[Termination "Falia-p won by resignation"]

1. e4 {[%clk 0:03:00.9]} 1... c5 {[%clk 0:02:59.2]} 2. Nf3 {[%clk 0:02:57.6]}
2... d6 {[%clk 0:02:59.5]} 3. d4 {[%clk 0:02:56.9]} 3... cxd4 {[%clk 0:03:00]}
4. Nxd4 {[%clk 0:02:57.7]} 4... Nf6 {[%clk 0:03:00.3]} 5. Nc3 {[%clk 0:02:57.3]}
5... a6 {[%clk 0:02:59.4]} 6. h3 {[%clk 0:02:51.6]} 6... e5 {[%clk 0:02:58.2]}
7. Nb3 {[%clk 0:02:51]} 7... h5 {[%clk 0:02:57.5]} 8. Bg5 {[%clk 0:02:49.5]}
8... Nbd7 {[%clk 0:02:57.4]} 9. Qd3 {[%clk 0:02:47.9]} 9... Be7 {[%clk
0:02:56.4]} 10. Bxf6 {[%clk 0:02:46.2]} 10... Nxf6 {[%clk 0:02:54.9]} 11. O-O-O
{[%clk 0:02:41.4]} 11... Be6 {[%clk 0:02:53.6]} 12. f3 {[%clk 0:02:34.9]} 12...
Rc8 {[%clk 0:02:50.8]} 13. Kb1 {[%clk 0:02:34.6]} 13... Qc7 {[%clk 0:02:47.8]}
14. Qd2 {[%clk 0:02:29]} 14... b5 {[%clk 0:02:46.5]} 15. Be2 {[%clk 0:02:26.2]}
15... h4 {[%clk 0:02:45.6]} 16. Nd5 {[%clk 0:02:16.4]} 16... Nxd5 {[%clk
0:02:41.1]} 17. exd5 {[%clk 0:02:14.9]} 17... Bf5 {[%clk 0:02:41.1]} 18. Bd3
{[%clk 0:02:15.1]} 18... Bxd3 {[%clk 0:02:34.3]} 19. Qxd3 {[%clk 0:02:16]} 19...
Bg5 {[%clk 0:02:23.8]} 20. Rhe1 {[%clk 0:02:05.8]} 20... O-O {[%clk 0:02:20.3]}
21. Qf5 {[%clk 0:02:01.6]} 21... Bh6 {[%clk 0:02:09.7]} 22. Re2 {[%clk 0:01:58]}
22... a5 {[%clk 0:01:56.7]} 23. Qg4 {[%clk 0:01:54.2]} 23... b4 {[%clk
0:01:48.7]} 24. Qxh4 {[%clk 0:01:48.1]} 24... a4 {[%clk 0:01:48.1]} 25. Nc1
{[%clk 0:01:48.1]} 25... b3 {[%clk 0:01:42.5]} 26. axb3 {[%clk 0:01:35.1]} 26...
Bxc1 {[%clk 0:01:37.4]} 27. Kxc1 {[%clk 0:01:27.1]} 27... axb3 {[%clk
0:01:36.9]} 28. c3 {[%clk 0:01:26.9]} 28... Ra8 {[%clk 0:01:20.1]} 29. Kd2
{[%clk 0:01:25.3]} 29... Qc5 {[%clk 0:01:19.6]} 30. Qf2 {[%clk 0:01:14.5]} 30...
Qxd5+ {[%clk 0:01:17.9]} 31. Ke1 {[%clk 0:01:14.8]} 31... Qc6 {[%clk 0:01:12.8]}
32. Red2 {[%clk 0:01:14.5]} 32... Rfd8 {[%clk 0:01:11]} 33. Qe3 {[%clk
0:01:13.3]} 33... f6 {[%clk 0:01:01.3]} 34. Kf2 {[%clk 0:01:08]} 34... d5 {[%clk
0:00:59.5]} 35. Kg1 {[%clk 0:01:02.3]} 35... Rd7 {[%clk 0:00:55.8]} 36. Kh1
{[%clk 0:01:00.6]} 36... Qc4 {[%clk 0:00:53.5]} 37. Qd3 {[%clk 0:00:59.6]} 37...
Qxd3 {[%clk 0:00:48.3]} 38. Rxd3 {[%clk 0:01:00.5]} 38... Ra2 {[%clk 0:00:46.3]}
39. R1d2 {[%clk 0:00:59.4]} 39... Kf7 {[%clk 0:00:42.7]} 40. Kg1 {[%clk
0:00:58.7]} 40... Ke6 {[%clk 0:00:42.9]} 41. Kf2 {[%clk 0:00:58.9]} 41... f5
{[%clk 0:00:40.1]} 42. Ke3 {[%clk 0:00:57.7]} 42... f4+ {[%clk 0:00:35.4]} 43.
Ke2 {[%clk 0:00:54.7]} 43... g5 {[%clk 0:00:34.9]} 44. c4 {[%clk 0:00:49]} 44...
d4 {[%clk 0:00:21.2]} 45. Rxb3 {[%clk 0:00:48.2]} 45... Rc7 {[%clk 0:00:20.8]}
46. Rb6+ {[%clk 0:00:43.1]} 46... Kf5 {[%clk 0:00:20.9]} 47. Rc2 {[%clk
0:00:39.9]} 47... Ra1 {[%clk 0:00:20.4]} 48. c5 {[%clk 0:00:37.6]} 48... Rg1
{[%clk 0:00:19.5]} 49. Kf2 {[%clk 0:00:37.8]} 49... Rd1 {[%clk 0:00:18.6]} 50.
c6 {[%clk 0:00:37]} 50... d3 {[%clk 0:00:18.1]} 51. Rc3 {[%clk 0:00:34.6]} 51...
Rd2+ {[%clk 0:00:17.6]} 52. Kf1 {[%clk 0:00:33.9]} 52... Ke6 {[%clk 0:00:11]}
53. Rbb3 {[%clk 0:00:29.9]} 53... Rc2 {[%clk 0:00:08.6]} 54. Rxc2 {[%clk
0:00:28.6]} 54... dxc2 {[%clk 0:00:07.6]} 55. Rc3 {[%clk 0:00:28.9]} 55... Kd5
{[%clk 0:00:03.6]} 56. Rxc2 {[%clk 0:00:29]} 56... Rxc6 {[%clk 0:00:03.4]} 57.
Rxc6 {[%clk 0:00:28.9]} 57... Kxc6 {[%clk 0:00:04.1]} 58. Ke2 {[%clk 0:00:29.6]}
58... Kb5 {[%clk 0:00:04.8]} 59. Kd3 {[%clk 0:00:29.8]} 59... Kb4 {[%clk
0:00:05.7]} 60. Ke4 {[%clk 0:00:30.1]} 60... Kb3 {[%clk 0:00:06.6]} 61. Kxe5
{[%clk 0:00:29.4]} 61... Kxb2 {[%clk 0:00:07.5]} 62. Kf5 {[%clk 0:00:29.8]}
62... Kc2 {[%clk 0:00:08.4]} 63. Kxg5 {[%clk 0:00:30.2]} 63... Kd2 {[%clk
0:00:09.3]} 64. Kxf4 {[%clk 0:00:30.6]} 64... Ke2 {[%clk 0:00:10.2]} 65. g4
{[%clk 0:00:30.8]} 65... Kf2 {[%clk 0:00:11.1]} 66. h4 {[%clk 0:00:31.3]} 66...
Kg2 {[%clk 0:00:12]} 67. h5 {[%clk 0:00:32.1]} 1-0

[Event "*** SCC Grand Prix: Titled Tuesday Blitz"]
[Site "Chess.com"]
[Date "2020.07.07"]
[Round "6"]
[White "Aygehovit1992"]
[Black "LedakovAlexandr"]
[Result "0-1"]
[WhiteElo "2621"]
[BlackElo "2497"]
[TimeControl "180+1"]
[EndTime "11:07:20 PDT"]
[Termination "LedakovAlexandr won on time"]

1. e4 {[%clk 0:03:00.9]} 1... Nc6 {[%clk 0:02:54.5]} 2. d4 {[%clk 0:03:00.7]}
2... d6 {[%clk 0:02:52.4]} 3. Nf3 {[%clk 0:02:59.9]} 3... g6 {[%clk 0:02:51.8]}
4. d5 {[%clk 0:02:56.2]} 4... Nb8 {[%clk 0:02:50.8]} 5. Nc3 {[%clk 0:02:54.7]}
5... Bg7 {[%clk 0:02:49.3]} 6. Be3 {[%clk 0:02:54.7]} 6... Nf6 {[%clk 0:02:49]}
7. Qd2 {[%clk 0:02:47.9]} 7... c6 {[%clk 0:02:37.1]} 8. Bh6 {[%clk 0:02:45.9]}
8... O-O {[%clk 0:02:35.1]} 9. h4 {[%clk 0:02:44.5]} 9... Bg4 {[%clk 0:02:33.5]}
10. Bxg7 {[%clk 0:02:44.8]} 10... Kxg7 {[%clk 0:02:33.4]} 11. h5 {[%clk
0:02:45.5]} 11... Bxh5 {[%clk 0:02:23.2]} 12. Bd3 {[%clk 0:02:36.3]} 12... Nbd7
{[%clk 0:02:16.5]} 13. O-O-O {[%clk 0:02:28.2]} 13... Rh8 {[%clk 0:02:12.4]} 14.
dxc6 {[%clk 0:02:11.7]} 14... bxc6 {[%clk 0:02:07]} 15. Rh4 {[%clk 0:01:36.9]}
15... Rb8 {[%clk 0:01:53.6]} 16. Rdh1 {[%clk 0:01:35.1]} 16... Qa5 {[%clk
0:01:11.9]} 17. b3 {[%clk 0:00:58.7]} 17... Bxf3 {[%clk 0:00:43.8]} 18. gxf3
{[%clk 0:00:55.5]} 18... h5 {[%clk 0:00:25.7]} 19. f4 {[%clk 0:00:55.8]} 19...
Rbg8 {[%clk 0:00:25.4]} 20. Kb2 {[%clk 0:00:51.2]} 20... Kf8 {[%clk 0:00:24]}
21. Qe3 {[%clk 0:00:40.1]} 21... Qc5 {[%clk 0:00:21.7]} 22. Qg3 {[%clk
0:00:22.8]} 22... g5 {[%clk 0:00:19.6]} 23. fxg5 {[%clk 0:00:21.5]} 23... Qxg5
{[%clk 0:00:17.2]} 24. Qh3 {[%clk 0:00:16]} 24... Qe5 {[%clk 0:00:13.6]} 25. f4
{[%clk 0:00:16.1]} 25... Qd4 {[%clk 0:00:13.9]} 26. e5 {[%clk 0:00:12.1]} 26...
dxe5 {[%clk 0:00:13.3]} 27. fxe5 {[%clk 0:00:12.3]} 27... Qxe5 {[%clk
0:00:13.4]} 28. Bf5 {[%clk 0:00:09.3]} 28... e6 {[%clk 0:00:11.8]} 29. Bd3
{[%clk 0:00:05.8]} 29... Qg3 {[%clk 0:00:08.9]} 30. Qf1 {[%clk 0:00:05.8]} 30...
Rg5 {[%clk 0:00:07.6]} 31. Rd4 {[%clk 0:00:06.1]} 31... Qe5 {[%clk 0:00:06.9]}
32. Ne2 {[%clk 0:00:05.7]} 32... c5 {[%clk 0:00:05.3]} 33. Kb1 {[%clk
0:00:02.7]} 33... cxd4 {[%clk 0:00:05.4]} 34. Qf3 {[%clk 0:00:03]} 34... Ke7
{[%clk 0:00:05.5]} 35. Qb7 {[%clk 0:00:02.7]} 35... Nd5 {[%clk 0:00:05.5]} 36.
Qxa7 {[%clk 0:00:02.8]} 36... Rd8 {[%clk 0:00:05]} 37. Qa3+ {[%clk 0:00:02.5]}
37... Qd6 {[%clk 0:00:05.3]} 38. Qa7 {[%clk 0:00:02.5]} 38... Nc3+ {[%clk
0:00:04.7]} 39. Nxc3 {[%clk 0:00:02.2]} 39... dxc3 {[%clk 0:00:05.6]} 40. Rf1
{[%clk 0:00:02.4]} 40... h4 {[%clk 0:00:04.4]} 41. Qb7 {[%clk 0:00:02.5]} 41...
Qe5 {[%clk 0:00:03.4]} 42. Qf3 {[%clk 0:00:02.8]} 42... f5 {[%clk 0:00:02.9]}
43. Qf2 {[%clk 0:00:02.8]} 43... Qg3 {[%clk 0:00:01.3]} 44. Qa7 {[%clk
0:00:02.5]} 44... Kf6 {[%clk 0:00:01.3]} 45. Qd4+ {[%clk 0:00:02.2]} 45... Ne5
{[%clk 0:00:02.2]} 46. Qxd8+ {[%clk 0:00:02]} 46... Kf7 {[%clk 0:00:02.9]} 47.
Qc7+ {[%clk 0:00:01.9]} 47... Kf6 {[%clk 0:00:03.8]} 48. Qxc3 {[%clk 0:00:02]}
48... Kf7 {[%clk 0:00:03.8]} 49. Qc7+ {[%clk 0:00:01.1]} 49... Kf6 {[%clk
0:00:04.1]} 50. Bb5 {[%clk 0:00:01.4]} 50... Kg6 {[%clk 0:00:04]} 0-1